[Event "CCT Chessable Masters D-III 2024"]
[Site "Online"]
[Date "2024.02.02"]
[Round "1"]
[White "Bortnyk, Oleksandr"]
[Black "Safarli, Eltaj"]
[Result "0-1"]
[ECO "C77"]
[WhiteElo "2638"]
[BlackElo "2604"]
[Annotator "ChessBase"]
[PlyCount "156"]
[EventDate "2024.01.12"]
[EventType "k.o."]
[EventCountry "NET"]
[SourceTitle "playchess.com"]
[Source "ChessBase"]
[SourceQuality "1"]
[TimeControl "600+2"]

1. e4 {[%emt 0:00:11]} e5 {[%emt 0:00:07]} 2. Nf3 {[%emt 0:00:04]} Nc6 {[%emt 0:00:01]} 3. Bb5 {[%emt 0:00:02]} a6 {[%emt 0:00:08]} 4. Ba4 {[%emt 0:00:02]} Nf6 {[%emt 0:00:06]} 5. Nc3 {[%emt 0:00:02]} Bc5 {[%emt 0:00:47]} 6. O-O {[%emt 0:00:09]} b5 {[%emt 0:00:20]} 7. Bb3 {[%emt 0:00:02]} d6 {[%emt 0:00:01]} 8. Nd5 {[%emt 0:00:19]} O-O {[%emt 0:00:15]} 9. Nxf6+ {[%emt 0:00:56]} Qxf6 {[%emt 0:00:03]} 10. Bd5 {[%emt 0:00:00]} Bb7 {[%emt 0:00:27]} 11. d3 {[%emt 0:00:30]} Na5 {[%emt 0:00:17]} 12. Bg5 {[%emt 0:00:55]} Qg6 {[%emt 0:00:02]} 13. Bd2 {[%emt 0:00:42]} Bxd5 {[%emt 0:00:18]} 14. exd5 {[%emt 0:00:00]} Nb7 {[%emt 0:00:03]} 15. Nh4 {[%emt 0:00:02]} Qf6 {[%emt 0:00:07]} 16. Qg4 {[%emt 0:00:01]} h6 {[%emt 0:01:04]} 17. Rae1 {[%emt 0:00:05]} Kh7 {[%emt 0:01:50]} 18. Nf5 {[%emt 0:00:16]} Rh8 {[%emt 0:00:30]} 19. h4 {[%emt 0:00:30]} h5 {[%emt 0:00:26]} 20. Qxh5+ {[%emt 0:00:29]} Kg8 {[%emt 0:00:01]} 21. Qg4 {[%emt 0:00:25]} g6 {[%emt 0:00:49]} 22. Nh6+ {[%emt 0:00:04]} Kf8 {[%emt 0:00:01]} 23. c3 {[%emt 0:02:25]} Qg7 {[%emt 0:00:13]} 24. d4 {[%emt 0:00:01]} Bb6 {[%emt 0:00:06]} 25. dxe5 {[%emt 0:00:19]} Rxh6 {[%emt 0:00:02]} 26. Bxh6 {[%emt 0:00:40]} Qxh6 {[%emt 0:00:00]} 27. Qd7 {[%emt 0:00:18]} dxe5 {[%emt 0:00:12]} 28. Rxe5 {[%emt 0:00:12]} Qxh4 {[%emt 0:00:07]} 29. Qh3 {[%emt 0:00:56]} Qxh3 {[%emt 0:00:25]} 30. gxh3 {[%emt 0:00:00]} Rd8 {[%emt 0:00:10]} 31. Rd1 {[%emt 0:00:08]} Rd6 {[%emt 0:00:09]} 32. Kg2 {[%emt 0:00:04]} Rf6 {[%emt 0:00:02]} 33. Re2 {[%emt 0:00:01]} Nd6 {[%emt 0:00:02]} 34. b3 {[%emt 0:00:03]} Rf4 {[%emt 0:00:16]} 35. Rde1 {[%emt 0:00:07]} Rf5 {[%emt 0:00:12]} 36. Rd1 {[%emt 0:00:01]} Rg5+ {[%emt 0:00:02]} 37. Kf3 {[%emt 0:00:01]} a5 {[%emt 0:00:16]} 38. Rd3 {[%emt 0:00:07]} Rg1 {[%emt 0:00:06]} 39. Rc2 {[%emt 0:00:03]} Nf5 {[%emt 0:00:04]} 40. Rcd2 {[%emt 0:00:05]} Re1 {[%emt 0:00:12]} 41. Rd1 {[%emt 0:00:01]} Re5 {[%emt 0:00:10]} 42. R1d2 {[%emt 0:00:02]} Nd6 {[%emt 0:00:07]} 43. Re2 {[%emt 0:00:02]} Rh5 {[%emt 0:00:12]} 44. Kg2 {[%emt 0:00:01]} Nf5 {[%emt 0:00:04]} 45. Re4 {[%emt 0:00:03]} Nd6 {[%emt 0:00:04]} 46. Re2 {[%emt 0:00:01]} a4 {[%emt 0:00:04]} 47. Kg3 {[%emt 0:00:01]} Rg5+ {[%emt 0:00:02]} 48. Kh2 {[%emt 0:00:04]} Kg7 {[%emt 0:00:07]} 49. Kh1 {[%emt 0:00:04]} Rf5 {[%emt 0:00:02]} 50. Kg2 {[%emt 0:00:01]} Rf4 {[%emt 0:00:01]} 51. Kg3 {[%emt 0:00:01]} g5 {[%emt 0:00:02]} 52. Kg2 {[%emt 0:00:01]} axb3 {[%emt 0:00:07]} 53. axb3 {[%emt 0:00:01]} Ne4 {[%emt 0:00:01]} 54. f3 {[%emt 0:00:02]} Nd6 {[%emt 0:00:02]} 55. Re5 {[%emt 0:00:03]} Nf5 {[%emt 0:00:04]} 56. Re4 {[%emt 0:00:02]} Nh4+ {[%emt 0:00:02]} 57. Kg3 {[%emt 0:00:00]} Rf5 {[%emt 0:00:07]} 58. c4 {[%emt 0:00:05]} bxc4 {[%emt 0:00:01]} 59. Rxc4 {[%emt 0:00:01]} Ng6 {[%emt 0:00:04]} 60. d6 {[%emt 0:00:01]} cxd6 {[%emt 0:00:07]} 61. Rxd6 {[%emt 0:00:00]} Ba5 {[%emt 0:00:04]} 62. b4 {[%emt 0:00:01]} Ne5 {[%emt 0:00:05]} 63. Rd5 {[%emt 0:00:05]} Bb6 {[%emt 0:00:06]} 64. b5 {[%emt 0:00:07]} Rxf3+ {[%emt 0:00:01]} 65. Kg2 {[%emt 0:00:02]} Rf2+ {[%emt 0:00:01]} 66. Kg3 {[%emt 0:00:00]} Nxc4 {[%emt 0:00:01]} 67. Rxg5+ {[%emt 0:00:01]} Kf6 {[%emt 0:00:01]} 68. Rg8 {[%emt 0:00:01]} Rb2 {[%emt 0:00:02]} 69. h4 {[%emt 0:00:01]} Bf2+ {[%emt 0:00:02]} 70. Kg4 {[%emt 0:00:01]} Ne5+ {[%emt 0:00:01]} 71. Kh3 {[%emt 0:00:02]} Rb3+ {[%emt 0:00:01]} 72. Kg2 {[%emt 0:00:00]} Bxh4 {[%emt 0:00:01]} 73. Rb8 {[%emt 0:00:02]} Bg5 {[%emt 0:00:02]} 74. b6 {[%emt 0:00:00]} Nd7 {[%emt 0:00:01]} 75. Rc8 {[%emt 0:00:02]} Nxb6 {[%emt 0:00:01]} 76. Rc6+ {[%emt 0:00:01]} Kf5 {[%emt 0:00:01]} 77. Rc5+ {[%emt 0:00:01]} Kg4 {[%emt 0:00:01]} 78. Rb5 {[%emt 0:00:00]} Rxb5 {[%emt 0:00:01]} 0-1

[Event "CCT Chessable Masters D-III 2024"]
[Site "Online"]
[Date "2024.02.02"]
[Round "1"]
[White "Mishra, Abhimanyu"]
[Black "Malakhov, Vladimir"]
[Result "0-1"]
[ECO "C54"]
[WhiteElo "2627"]
[BlackElo "2648"]
[Annotator "RC"]
[PlyCount "212"]
[EventDate "2024.01.12"]
[EventType "k.o."]
[EventCountry "NET"]
[SourceTitle "playchess.com"]
[Source "ChessBase"]
[SourceQuality "1"]
[TimeControl "600+2"]

1. e4 {[%emt 0:00:02]} e5 {[%emt 0:00:35]} 2. Nf3 {[%emt 0:00:03]} Nc6 {[%emt 0:00:02]} 3. Bc4 {[%emt 0:00:02]} Bc5 {[%emt 0:00:02]} 4. c3 {[%emt 0:00:00]} Nf6 {[%emt 0:00:01]} 5. d3 {[%emt 0:00:01]} h6 {[%emt 0:00:02]} 6. O-O {[%emt 0:00:01]} d6 {[%emt 0:00:02]} 7. Re1 {[%emt 0:00:01]} O-O {[%emt 0:00:01]} 8. Nbd2 {[%emt 0:00:02]} a6 {[%emt 0:00:05]} 9. a4 {[%emt 0:00:03]} Ba7 {[%emt 0:00:02]} 10. h3 {[%emt 0:00:02]} Re8 {[%emt 0:00:03]} 11. b4 {[%emt 0:00:06]} Be6 {[%emt 0:00:01]} 12. Bxe6 {[%emt 0:00:05]} Rxe6 {[%emt 0:00:01]} 13. Qc2 {[%emt 0:00:01]} Ne7 {[%emt 0:00:20]} 14. Nf1 {[%emt 0:00:18]} Qd7 {[%emt 0:00:09]} 15. Ng3 {[%emt 0:00:09]} d5 {[%emt 0:00:10]} 16. exd5 {[%emt 0:01:16]} Nfxd5 {[%emt 0:00:03]} 17. Nxe5 {[%emt 0:00:58]} Qd6 {[%emt 0:00:03]} 18. d4 {[%emt 0:00:01]} Nxc3 {[%emt 0:00:02]} 19. Bb2 {[%emt 0:01:37]} Ncd5 {[%emt 0:00:04]} 20. b5 {[%emt 0:00:09]} Re8 {[%emt 0:01:42]} 21. Ne4 {[%emt 0:01:04]} Qd8 {[%emt 0:00:03]} 22. Nc5 {[%emt 0:00:07]} Bxc5 {[%emt 0:00:04]} 23. dxc5 {[%emt 0:00:07]} Ng6 {[%emt 0:00:20]} 24. Qf5 {[%emt 0:01:03]} Nxe5 {[%emt 0:01:26]} 25. Rxe5 {[%emt 0:00:11]} Rxe5 {[%emt 0:00:02]} 26. Bxe5 {[%emt 0:00:01]} c6 {[%emt 0:02:05]} 27. Bd6 {[%emt 0:00:43]} g6 {[%emt 0:00:50]} 28. Qf3 {[%emt 0:00:08]} Qa5 {[%emt 0:00:17]} 29. bxc6 {[%emt 0:00:35]} bxc6 {[%emt 0:00:01]} 30. Qd3 {[%emt 0:00:58]} Re1+ {[%emt 0:00:54]} 31. Rxe1 {[%emt 0:00:03]} Qxe1+ {[%emt 0:00:01]} 32. Kh2 {[%emt 0:00:07]} Nc3 {[%emt 0:00:06]} 33. h4 {[%emt 0:00:39]} h5 {[%emt 0:00:21]} 34. Qf3 {[%emt 0:00:09]} Ne2 {[%emt 0:00:40]} 35. g3 {[%emt 0:00:04]} Qg1+ {[%emt 0:00:08]} 36. Kh3 {[%emt 0:00:01]} Nd4 {[%emt 0:00:07]} 37. Qg2 {[%emt 0:00:08]} Qd1 {[%emt 0:00:04]} 38. Qe4 {[%emt 0:00:04]} Qf1+ {[%emt 0:00:03]} 39. Qg2 {[%emt 0:00:01]} Qd3 {[%emt 0:00:01]} 40. Qh1 {[%emt 0:00:08]} Qf5+ {[%emt 0:00:04]} 41. Kg2 {[%emt 0:00:03]} Qe4+ {[%emt 0:00:01]} 42. Kh2 {[%emt 0:00:02]} Nf3+ {[%emt 0:00:01]} 43. Kh3 {[%emt 0:00:01]} Qe6+ {[%emt 0:00:08]} 44. Kg2 {[%emt 0:00:01]} Qe4 {[%emt 0:00:01]} 45. Kh3 {[%emt 0:00:02]} Qg4+ {[%emt 0:00:04]} 46. Kg2 {[%emt 0:00:00]} Nd4 {[%emt 0:00:01]} 47. Qe1 {[%emt 0:00:05]} Qf3+ {[%emt 0:00:01]} 48. Kg1 {[%emt 0:00:01]} Ne2+ {[%emt 0:00:02]} 49. Kf1 {[%emt 0:00:01]} Nd4 {[%emt 0:00:04]} 50. Kg1 {[%emt 0:00:02]} Kh7 {[%emt 0:00:02]} 51. Qe8 {[%emt 0:00:03]} Qd5 {[%emt 0:00:05]} 52. Qe3 {[%emt 0:00:04]} Nf5 {[%emt 0:00:02]} 53. Qf4 {[%emt 0:00:01]} Nd4 {[%emt 0:00:03]} 54. Qe3 {[%emt 0:00:02]} a5 {[%emt 0:00:03]} 55. Bf8 {[%emt 0:00:03]} Ne6 {[%emt 0:00:02]} 56. Bd6 {[%emt 0:00:02]} Nd4 {[%emt 0:00:00]} 57. Bf8 {[%emt 0:00:01]} Nf3+ {[%emt 0:00:02]} 58. Kf1 {[%emt 0:00:01]} Ne5 {[%emt 0:00:02]} 59. Bd6 {[%emt 0:00:02]} Qd1+ {[%emt 0:00:05]} 60. Kg2 {[%emt 0:00:01]} Qd5+ {[%emt 0:00:01]} 61. Kf1 {[%emt 0:00:02]} Nc4 {[%emt 0:00:01]} 62. Qf4 {[%emt 0:00:04]} Kg7 {[%emt 0:00:01]} 63. Kg1 {[%emt 0:00:02]} Qd1+ {[%emt 0:00:01]} 64. Kg2 {[%emt 0:00:01]} Qd5+ {[%emt 0:00:01]} 65. Kg1 {[%emt 0:00:01]} Nd2 {[%emt 0:00:01]} 66. Be5+ {[%emt 0:00:02]} Kg8 {[%emt 0:00:01]} 67. Bd6 {[%emt 0:00:02]} Nf3+ {[%emt 0:00:00]} 68. Kf1 {[%emt 0:00:01]} Nd4 {[%emt 0:00:01]} 69. Ke1 {[%emt 0:00:06]} Qe6+ {[%emt 0:00:10]} 70. Kf1 {[%emt 0:00:01]} Qe2+ {[%emt 0:00:01]} 71. Kg2 {[%emt 0:00:02]} Qd3 {[%emt 0:00:03]} 72. Qe5 {[%emt 0:00:03]} Qf3+ {[%emt 0:00:02]} 73. Kg1 {[%emt 0:00:00]} Qd1+ {[%emt 0:00:02]} 74. Kg2 {[%emt 0:00:01]} Qf3+ {[%emt 0:00:01]} 75. Kg1 {[%emt 0:00:01]} Ne6 {[%emt 0:00:01]} 76. Qe1 {[%emt 0:00:02]} Qb3 {[%emt 0:00:04]} 77. Qxa5 {[%emt 0:00:02]} Qd1+ {[%emt 0:00:01]} 78. Kg2 {[%emt 0:00:01]} Qd5+ {[%emt 0:00:02]} 79. Kg1 {[%emt 0:00:05]} Nd4 {[%emt 0:00:01]} 80. Qd8+ {[%emt 0:00:01]} Kh7 {[%emt 0:00:01]} 81. Qe7 {[%emt 0:00:04]} Nf3+ {[%emt 0:00:03]} 82. Kf1 {[%emt 0:00:00]} Nd2+ {[%emt 0:00:04]} 83. Kg1 {[%emt 0:00:02]} Ne4 {[%emt 0:00:00]} 84. Qe5 {[%emt 0:00:03]} Qd1+ {[%emt 0:00:06]} 85. Kg2 {[%emt 0:00:02]} Qxa4 {[%emt 0:00:01]} 86. Qf4 {[%emt 0:00:04]} Qc4 {[%emt 0:00:03]} 87. Qe5 {[%emt 0:00:01]} Nd2 {[%emt 0:00:02]} 88. Qe1 {[%emt 0:00:03]} Qd5+ {[%emt 0:00:01]} 89. Kh3 {[%emt 0:00:01]} Ne4 {[%emt 0:00:03]} 90. Kh2 {[%emt 0:00:03]} Nxd6 {[%emt 0:00:01]} 91. cxd6 {[%emt 0:00:00]} Qxd6 {[%emt 0:00:01]} 92. Qe8 {[%emt 0:00:04]} Qd5 {[%emt 0:00:01]} 93. Qc8 {[%emt 0:00:02]} c5 {[%emt 0:00:01]} 94. g4 {[%emt 0:00:02]} Qe5+ {[%emt 0:00:04]} 95. Kh3 {[%emt 0:00:02]} Qc3+ {[%emt 0:00:01]} 96. Kg2 {[%emt 0:00:01]} hxg4 {[%emt 0:00:01]} 97. Qxg4 {[%emt 0:00:03]} Qe5 {[%emt 0:00:02]} 98. Qd7 {[%emt 0:00:01]} Kg7 {[%emt 0:00:02]} 99. Qc8 {[%emt 0:00:01]} Qd5+ {[%emt 0:00:02]} 100. Kg3 {[%emt 0:00:01]} c4 {[%emt 0:00:01]} 101. h5 {[%emt 0:00:03]} gxh5 {[%emt 0:00:02]} 102. Qc7 {[%emt 0:00:01]} Qd3+ {[%emt 0:00:02]} 103. Kh4 {[%emt 0:00:01]} Qd4+ {[%emt 0:00:01]} 104. Kxh5 {[%emt 0:00:03]} c3 {[%emt 0:00:02]} 105. Qg3+ {[%emt 0:00:02]} Kf6 {[%emt 0:00:01]} 106. Qc7 {[%emt 0:00:06]} Qe5+ {[%emt 0:00:02]} 0-1

[Event "CCT Chessable Masters D-III 2024"]
[Site "Online"]
[Date "2024.02.02"]
[Round "1"]
[White "Zlatan56"]
[Black "MashaPutina"]
[Result "1/2-1/2"]
[ECO "B52"]
[WhiteElo "2627"]
[BlackElo "2652"]
[Annotator "NA"]
[PlyCount "87"]
[EventDate "2024.01.12"]
[EventType "k.o."]
[EventCountry "NET"]
[SourceTitle "playchess.com"]
[Source "ChessBase"]
[SourceQuality "1"]
[TimeControl "600+2"]

1. e4 {[%emt 0:00:03]} c5 {[%emt 0:00:05]} 2. Nf3 {[%emt 0:00:03]} d6 {[%emt 0:00:01]} 3. Bb5+ {[%emt 0:00:01]} Bd7 {[%emt 0:00:02]} 4. c4 {[%emt 0:00:02]} Nf6 {[%emt 0:00:07]} 5. Nc3 {[%emt 0:00:03]} g6 {[%emt 0:00:01]} 6. O-O {[%emt 0:00:02]} Bg7 {[%emt 0:00:01]} 7. Bxd7+ {[%emt 0:00:02]} Nbxd7 {[%emt 0:00:08]} 8. d4 {[%emt 0:00:02]} cxd4 {[%emt 0:00:02]} 9. Nxd4 {[%emt 0:00:02]} O-O {[%emt 0:00:10]} 10. Be3 {[%emt 0:00:21]} a6 {[%emt 0:00:05]} 11. f3 {[%emt 0:00:32]} Rc8 {[%emt 0:00:18]} 12. Qe2 {[%emt 0:01:24]} Ne5 {[%emt 0:00:03]} 13. b3 {[%emt 0:00:18]} b5 {[%emt 0:00:02]} 14. a4 {[%emt 0:00:05]} bxc4 {[%emt 0:00:04]} 15. b4 {[%emt 0:00:01]} d5 {[%emt 0:00:13]} 16. f4 {[%emt 0:00:23]} Nd3 {[%emt 0:00:03]} 17. e5 {[%emt 0:00:04]} Ne4 {[%emt 0:00:04]} 18. Nxe4 {[%emt 0:00:18]} dxe4 {[%emt 0:00:02]} 19. b5 {[%emt 0:00:00]} axb5 {[%emt 0:00:02]} 20. axb5 {[%emt 0:00:01]} Qd5 {[%emt 0:00:05]} 21. Nc6 {[%emt 0:00:48]} Rfe8 {[%emt 0:00:28]} 22. Rfb1 {[%emt 0:00:26]} f6 {[%emt 0:00:14]} 23. Ra7 {[%emt 0:00:48]} fxe5 {[%emt 0:00:45]} 24. fxe5 {[%emt 0:00:00]} Rxc6 {[%emt 0:00:16]} 25. bxc6 {[%emt 0:00:04]} Qxc6 {[%emt 0:00:00]} 26. Rbb7 {[%emt 0:01:46]} Qe6 {[%emt 0:01:33]} 27. Qa2 {[%emt 0:00:26]} Nxe5 {[%emt 0:00:47]} 28. Ra8 {[%emt 0:00:17]} Rxa8 {[%emt 0:00:02]} 29. Qxa8+ {[%emt 0:00:00]} Kf7 {[%emt 0:00:01]} 30. Bg5 {[%emt 0:00:21]} Bf6 {[%emt 0:00:03]} 31. Bh6 {[%emt 0:00:08]} g5 {[%emt 0:00:36]} 32. h4 {[%emt 0:00:44]} gxh4 {[%emt 0:00:03]} 33. Qf8+ {[%emt 0:00:18]} Kg6 {[%emt 0:00:02]} 34. Bf4 {[%emt 0:00:00]} Ng4 {[%emt 0:00:14]} 35. Qe8+ {[%emt 0:00:19]} Qf7 {[%emt 0:00:53]} 36. Qc6 {[%emt 0:00:03]} c3 {[%emt 0:00:10]} 37. Qxe4+ {[%emt 0:00:06]} Kg7 {[%emt 0:00:00]} 38. Bd6 {[%emt 0:00:19]} Qg6 {[%emt 0:00:18]} 39. Rxe7+ {[%emt 0:00:15]} Bxe7 {[%emt 0:00:13]} 40. Qxe7+ {[%emt 0:00:01]} Qf7 {[%emt 0:00:06]} 41. Qg5+ {[%emt 0:00:03]} Qg6 {[%emt 0:00:01]} 42. Qe7+ {[%emt 0:00:03]} Qf7 {[%emt 0:00:01]} 43. Qg5+ {[%emt 0:00:03]} Qg6 {[%emt 0:00:01]} 44. Qe7+ {[%emt 0:00:01]} 1/2-1/2

[Event "CCT Chessable Masters D-III 2024"]
[Site "Online"]
[Date "2024.02.02"]
[Round "1"]
[White "Rakhmanov_Aleksandr"]
[Black "Tabatabaei, M. Amin"]
[Result "1/2-1/2"]
[ECO "E40"]
[WhiteElo "2626"]
[BlackElo "2696"]
[Annotator "RC"]
[PlyCount "221"]
[EventDate "2024.01.12"]
[EventType "k.o."]
[EventCountry "NET"]
[SourceTitle "playchess.com"]
[Source "ChessBase"]
[SourceQuality "1"]
[TimeControl "600+2"]

1. d4 {[%emt 0:00:04]} Nf6 {[%emt 0:00:04]} 2. c4 {[%emt 0:00:01]} e6 {[%emt 0:00:01]} 3. Nc3 {[%emt 0:00:00]} Bb4 {[%emt 0:00:01]} 4. e3 {[%emt 0:00:01]} O-O {[%emt 0:00:02]} 5. Nf3 {[%emt 0:00:01]} Bxc3+ {[%emt 0:00:07]} 6. bxc3 {[%emt 0:00:01]} d6 {[%emt 0:00:00]} 7. Bd3 {[%emt 0:00:07]} Re8 {[%emt 0:00:04]} 8. O-O {[%emt 0:00:02]} e5 {[%emt 0:00:01]} 9. e4 {[%emt 0:00:01]} exd4 {[%emt 0:00:09]} 10. cxd4 {[%emt 0:00:00]} Nxe4 {[%emt 0:00:01]} 11. Bxe4 {[%emt 0:00:08]} Rxe4 {[%emt 0:00:01]} 12. Ng5 {[%emt 0:00:00]} Re7 {[%emt 0:01:00]} 13. Qd3 {[%emt 0:00:06]} f5 {[%emt 0:00:55]} 14. Nxh7 {[%emt 0:00:03]} Kxh7 {[%emt 0:00:26]} 15. Bg5 {[%emt 0:00:06]} Qe8 {[%emt 0:01:11]} 16. Qh3+ {[%emt 0:00:08]} Kg8 {[%emt 0:00:02]} 17. Bxe7 {[%emt 0:00:01]} Qxe7 {[%emt 0:00:00]} 18. Rae1 {[%emt 0:00:02]} Qf7 {[%emt 0:00:02]} 19. Qh4 {[%emt 0:00:30]} Nd7 {[%emt 0:02:09]} 20. Re7 {[%emt 0:00:14]} Qf6 {[%emt 0:00:01]} 21. Re8+ {[%emt 0:01:09]} Kf7 {[%emt 0:00:01]} 22. Qh5+ {[%emt 0:00:22]} g6 {[%emt 0:00:03]} 23. Qe2 {[%emt 0:01:40]} Nf8 {[%emt 0:00:01]} 24. d5 {[%emt 0:01:00]} Ne6 {[%emt 0:00:14]} 25. Rxe6 {[%emt 0:00:39]} Bxe6 {[%emt 0:00:01]} 26. dxe6+ {[%emt 0:00:01]} Qxe6 {[%emt 0:00:01]} 27. Qf3 {[%emt 0:00:25]} Qe4 {[%emt 0:00:57]} 28. Qb3 {[%emt 0:00:37]} Kg7 {[%emt 0:00:27]} 29. Qc3+ {[%emt 0:00:26]} Qe5 {[%emt 0:00:01]} 30. Qb4 {[%emt 0:00:01]} Re8 {[%emt 0:00:55]} 31. Qxb7 {[%emt 0:00:06]} Qc5 {[%emt 0:00:00]} 32. Qb2+ {[%emt 0:00:07]} Kg8 {[%emt 0:00:04]} 33. Qf6 {[%emt 0:00:10]} Qxc4 {[%emt 0:00:05]} 34. Qxg6+ {[%emt 0:00:06]} Kf8 {[%emt 0:00:00]} 35. Qxf5+ {[%emt 0:00:16]} Qf7 {[%emt 0:00:08]} 36. Qc2 {[%emt 0:00:05]} c5 {[%emt 0:00:08]} 37. Rd1 {[%emt 0:00:05]} Re5 {[%emt 0:00:08]} 38. h3 {[%emt 0:00:24]} Qe7 {[%emt 0:00:01]} 39. Kh2 {[%emt 0:00:23]} Re4 {[%emt 0:00:20]} 40. Qc3 {[%emt 0:00:14]} Qe6 {[%emt 0:00:16]} 41. Qh8+ {[%emt 0:00:15]} Ke7 {[%emt 0:00:01]} 42. Qg7+ {[%emt 0:00:09]} Ke8 {[%emt 0:00:03]} 43. Qxa7 {[%emt 0:00:49]} Qe5+ {[%emt 0:00:10]} 44. g3 {[%emt 0:00:02]} Re2 {[%emt 0:00:01]} 45. Qa8+ {[%emt 0:00:05]} Ke7 {[%emt 0:00:12]} 46. Qb7+ {[%emt 0:00:01]} Ke6 {[%emt 0:00:07]} 47. Qf3 {[%emt 0:00:03]} c4 {[%emt 0:00:20]} 48. Rb1 {[%emt 0:00:02]} Qe4 {[%emt 0:00:03]} 49. Qf8 {[%emt 0:00:18]} Qxb1 {[%emt 0:00:09]} 50. Qe8+ {[%emt 0:00:01]} Kd5 {[%emt 0:00:07]} 51. Qxe2 {[%emt 0:00:01]} Qd3 {[%emt 0:00:09]} 52. Qh5+ {[%emt 0:00:00]} Kd4 {[%emt 0:00:01]} 53. Qh8+ {[%emt 0:00:01]} Kc5 {[%emt 0:00:01]} 54. Qc8+ {[%emt 0:00:01]} Kb4 {[%emt 0:00:01]} 55. Qb7+ {[%emt 0:00:07]} Ka3 {[%emt 0:00:03]} 56. Qa6+ {[%emt 0:00:02]} Kb2 {[%emt 0:00:01]} 57. h4 {[%emt 0:00:02]} Qd4 {[%emt 0:00:06]} 58. Qb5+ {[%emt 0:00:03]} Kxa2 {[%emt 0:00:02]} 59. Qa4+ {[%emt 0:00:02]} Kb2 {[%emt 0:00:01]} 60. Qb4+ {[%emt 0:00:03]} Kc2 {[%emt 0:00:01]} 61. Kg1 {[%emt 0:00:01]} Qd1+ {[%emt 0:00:02]} 62. Kg2 {[%emt 0:00:01]} Qd5+ {[%emt 0:00:01]} 63. Kh2 {[%emt 0:00:01]} c3 {[%emt 0:00:01]} 64. Qa4+ {[%emt 0:00:01]} Kb2 {[%emt 0:00:01]} 65. Qb4+ {[%emt 0:00:02]} Kc2 {[%emt 0:00:02]} 66. Qa4+ {[%emt 0:00:00]} Kd2 {[%emt 0:00:01]} 67. Qb4 {[%emt 0:00:02]} Qc5 {[%emt 0:00:03]} 68. Qf4+ {[%emt 0:00:03]} Kd1 {[%emt 0:00:01]} 69. Qf3+ {[%emt 0:00:02]} Ke1 {[%emt 0:00:01]} 70. Qe4+ {[%emt 0:00:01]} Kxf2 {[%emt 0:00:09]} 71. Qc2+ {[%emt 0:00:01]} Ke3 {[%emt 0:00:02]} 72. Qc1+ {[%emt 0:00:03]} Kd3 {[%emt 0:00:03]} 73. Qd1+ {[%emt 0:00:01]} Ke3 {[%emt 0:00:01]} 74. Qc1+ {[%emt 0:00:01]} Ke4 {[%emt 0:00:02]} 75. Qf4+ {[%emt 0:00:01]} Kd3 {[%emt 0:00:02]} 76. Qf1+ {[%emt 0:00:02]} Kd2 {[%emt 0:00:04]} 77. Qf4+ {[%emt 0:00:02]} Kc2 {[%emt 0:00:03]} 78. Qe4+ {[%emt 0:00:07]} Kb2 {[%emt 0:00:01]} 79. Qb7+ {[%emt 0:00:01]} Ka3 {[%emt 0:00:03]} 80. Qa6+ {[%emt 0:00:02]} Kb4 {[%emt 0:00:01]} 81. Qb7+ {[%emt 0:00:01]} Qb5 {[%emt 0:00:03]} 82. Qc7 {[%emt 0:00:05]} Qe2+ {[%emt 0:00:02]} 83. Kh3 {[%emt 0:00:00]} Qe6+ {[%emt 0:00:01]} 84. Kh2 {[%emt 0:00:04]} d5 {[%emt 0:00:04]} 85. h5 {[%emt 0:00:02]} d4 {[%emt 0:00:05]} 86. Qb7+ {[%emt 0:00:03]} Kc4 {[%emt 0:00:01]} 87. Qc7+ {[%emt 0:00:02]} Kb3 {[%emt 0:00:01]} 88. Qb7+ {[%emt 0:00:01]} Kc2 {[%emt 0:00:00]} 89. Qg2+ {[%emt 0:00:00]} Kc1 {[%emt 0:00:04]} 90. Qf1+ {[%emt 0:00:02]} Kb2 {[%emt 0:00:01]} 91. Qb5+ {[%emt 0:00:01]} Kc2 {[%emt 0:00:00]} 92. Qa4+ {[%emt 0:00:04]} Kd3 {[%emt 0:00:03]} 93. Qd1+ {[%emt 0:00:01]} Kc4 {[%emt 0:00:01]} 94. Qa4+ {[%emt 0:00:01]} Kc5 {[%emt 0:00:00]} 95. Qa5+ {[%emt 0:00:01]} Kd6 {[%emt 0:00:02]} 96. Qb6+ {[%emt 0:00:03]} Ke5 {[%emt 0:00:01]} 97. Qc7+ {[%emt 0:00:08]} Ke4 {[%emt 0:00:01]} 98. Qb7+ {[%emt 0:00:02]} Ke3 {[%emt 0:00:02]} 99. Qg2 {[%emt 0:00:02]} d3 {[%emt 0:00:08]} 100. Qg1+ {[%emt 0:00:03]} Kd2 {[%emt 0:00:01]} 101. Qg2+ {[%emt 0:00:02]} Kc1 {[%emt 0:00:03]} 102. Qg1+ {[%emt 0:00:01]} Kc2 {[%emt 0:00:02]} 103. Qf2+ {[%emt 0:00:02]} d2 {[%emt 0:00:01]} 104. g4 {[%emt 0:00:02]} Kc1 {[%emt 0:00:02]} 105. Qf4 {[%emt 0:00:01]} Qe2+ {[%emt 0:00:04]} 106. Kg3 {[%emt 0:00:03]} Kc2 {[%emt 0:00:04]} 107. Qa4+ {[%emt 0:00:02]} Kb2 {[%emt 0:00:03]} 108. Qb4+ {[%emt 0:00:01]} Kc2 {[%emt 0:00:01]} 109. Qa4+ {[%emt 0:00:01]} Kc1 {[%emt 0:00:06]} 110. Qa1+ {[%emt 0:00:01]} Kc2 {[%emt 0:00:01]} 111. Qa4+ {[%emt 0:00:00]} 1/2-1/2